[Event "Festival Groningen-A 2024"]
[Site "Groningen"]
[Date "2024.12.30"]
[Round "9.17"]
[White "De Boer, Bas"]
[Black "Kazarjan, Gachatur"]
[Result "1/2-1/2"]
[ECO "D30"]
[WhiteElo "2157"]
[BlackElo "2067"]
[Annotator "RC"]
[PlyCount "105"]
[EventDate "2024.12.21"]
[EventType "swiss"]
[EventCountry "NED"]
[SourceTitle "playchess.com"]
[Source "ChessBase"]
[SourceQuality "1"]
[TimeControl "40/5400+30:1800+30"]

1. Nf3 {[%emt 0:00:16]} d5 {[%emt 0:04:07]} 2. g3 {[%emt 0:00:06]} c5 {[%emt 0:00:21]} 3. Bg2 {[%emt 0:00:07]} Nc6 {[%emt 0:00:03]} 4. d4 {[%emt 0:00:09]} e6 {[%emt 0:00:30]} 5. O-O {[%emt 0:00:10]} Nf6 {[%emt 0:00:13]} 6. c4 {[%emt 0:00:19]} Be7 {[%emt 0:00:05]} 7. cxd5 {[%emt 0:02:44]} exd5 {[%emt 0:00:06]} 8. dxc5 {[%emt 0:03:02]} Bxc5 {[%emt 0:00:07]} 9. a3 {[%emt 0:00:06]} Ne4 {[%emt 0:00:04]} 10. Ne1 {[%emt 0:00:28]} O-O {[%emt 0:00:55]} 11. Nd3 {[%emt 0:00:35]} Bb6 {[%emt 0:01:58]} 12. Nd2 {[%emt 0:04:11]} Re8 {[%emt 0:04:50]} 13. Nf3 {[%emt 0:07:07]} d4 {[%emt 0:04:52]} 14. Bf4 {[%emt 0:10:38]} h6 {[%emt 0:10:26]} 15. Rc1 {[%emt 0:05:13]} Bf5 {[%emt 0:03:42]} 16. Nd2 {[%emt 0:08:05]} Nxd2 {[%emt 0:04:33]} 17. Bxd2 {[%emt 0:00:08]} Bg4 {[%emt 0:08:15]} 18. Re1 {[%emt 0:01:55]} Qd7 {[%emt 0:13:47]} 19. Bb4 {[%emt 0:04:47]} Nxb4 {[%emt 0:02:06]} 20. axb4 {[%emt 0:01:26]} Re6 {[%emt 0:11:23]} 21. Nf4 {[%emt 0:07:50]} Rd6 {[%emt 0:01:55]} 22. Nd3 {[%emt 0:01:30]} Re8 {[%emt 0:02:52]} 23. Qd2 {[%emt 0:03:21]} Rde6 {[%emt 0:03:51]} 24. Nf4 {[%emt 0:08:57]} Rd6 {[%emt 0:03:09]} 25. Nd3 {[%emt 0:03:59]} Rde6 {[%emt 0:05:23]} 26. Bf3 {[%emt 0:06:23]} Bxf3 {[%emt 0:01:14]} 27. exf3 {[%emt 0:00:02]} Rxe1+ {[%emt 0:01:50]} 28. Rxe1 {[%emt 0:00:09]} Rxe1+ {[%emt 0:00:50]} 29. Qxe1 {[%emt 0:00:15]} Qb5 {[%emt 0:01:03]} 30. Qe4 {[%emt 0:02:08]} Qa4 {[%emt 0:04:49]} 31. Kg2 {[%emt 0:01:48]} Qd7 {[%emt 0:00:20]} 32. h4 {[%emt 0:03:49]} a5 {[%emt 0:00:56]} 33. bxa5 {[%emt 0:00:13]} Bxa5 {[%emt 0:00:06]} 34. Nc5 {[%emt 0:00:51]} Qc8 {[%emt 0:03:35]} 35. Qxd4 {[%emt 0:00:50]} b5 {[%emt 0:01:29]} 36. Ne4 {[%emt 0:04:53]} Bc7 {[%emt 0:00:40]} 37. Qc5 {[%emt 0:01:29]} Qb8 {[%emt 0:00:04]} 38. b4 {[%emt 0:00:22]} Be5 {[%emt 0:00:32]} 39. Qd5 {[%emt 0:01:12]} Bc7 {[%emt 0:00:58]} 40. h5 {[%emt 0:05:55]} Be5 {[%emt 0:00:20]} 41. f4 {[%emt 0:32:40]} Bc7 {[%emt 0:31:23]} 42. f5 {[%emt 0:00:00]} Qb6 {[%emt 0:00:00]} 43. Qa8+ {[%emt 0:00:00]} Qb8 {[%emt 0:00:00]} 44. Qc6 {[%emt 0:00:00]} Be5 {[%emt 0:00:00]} 45. f4 {[%emt 0:00:00]} Bb2 {[%emt 0:00:00]} 46. f6 {[%emt 0:00:00]} gxf6 {[%emt 0:00:00]} 47. Nxf6+ {[%emt 0:00:00]} Bxf6 {[%emt 0:00:00]} 48. Qxf6 {[%emt 0:00:00]} Qf8 {[%emt 0:00:00]} 49. Qd4 {[%emt 0:00:00]} Qa8+ {[%emt 0:00:00]} 50. Kh2 {[%emt 0:00:00]} Qf3 {[%emt 0:00:00]} 51. Qe5 {[%emt 0:00:00]} Qf2+ {[%emt 0:00:00]} 52. Kh3 {[%emt 0:00:00]} Qf1+ {[%emt 0:00:00]} 53. Kh2 {[%emt 0:06:52]} 1/2-1/2

[Event "Festival Groningen-A 2024"]
[Site "Groningen"]
[Date "2024.12.30"]
[Round "9.18"]
[White "Keuning, Selwin"]
[Black "De Boer, Eelke"]
[Result "0-1"]
[ECO "B11"]
[WhiteElo "2180"]
[BlackElo "2426"]
[Annotator "RC"]
[PlyCount "80"]
[EventDate "2024.12.21"]
[EventType "swiss"]
[EventCountry "NED"]
[SourceTitle "playchess.com"]
[Source "ChessBase"]
[SourceQuality "1"]
[TimeControl "40/5400+30:1800+30"]

1. e4 {[%emt 0:00:08]} c6 {[%emt 0:11:47]} 2. Nc3 {[%emt 0:00:22]} d5 {[%emt 0:00:26]} 3. Nf3 {[%emt 0:00:06]} dxe4 {[%emt 0:00:34]} 4. Nxe4 {[%emt 0:00:06]} Nf6 {[%emt 0:00:09]} 5. Qe2 {[%emt 0:00:02]} Nxe4 {[%emt 0:00:11]} 6. Qxe4 {[%emt 0:00:03]} Be6 {[%emt 0:00:13]} 7. b3 {[%emt 0:00:56]} Nd7 {[%emt 0:00:14]} 8. Bb2 {[%emt 0:00:33]} Nf6 {[%emt 0:00:09]} 9. Qe3 {[%emt 0:06:36]} Bf5 {[%emt 0:02:47]} 10. Nd4 {[%emt 0:03:20]} Nd5 {[%emt 0:06:49]} 11. Qf3 {[%emt 0:12:24]} Bg6 {[%emt 0:01:08]} 12. h4 {[%emt 0:05:38]} h5 {[%emt 0:01:27]} 13. c4 {[%emt 0:11:30]} Nc7 {[%emt 0:03:10]} 14. g3 {[%emt 0:08:58]} e6 {[%emt 0:15:37]} 15. Bg2 {[%emt 0:02:39]} Qd7 {[%emt 0:12:53]} 16. O-O {[%emt 0:05:15]} Rh7 {[%emt 0:03:05]} 17. Ne2 {[%emt 0:15:25]} Bf5 {[%emt 0:06:18]} 18. d4 {[%emt 0:06:03]} Be7 {[%emt 0:01:35]} 19. Nc3 {[%emt 0:07:31]} O-O-O {[%emt 0:03:27]} 20. Ne4 {[%emt 0:03:28]} f6 {[%emt 0:01:19]} 21. Qe3 {[%emt 0:01:14]} Kb8 {[%emt 0:04:41]} 22. Rfd1 {[%emt 0:01:53]} Bg4 {[%emt 0:07:28]} 23. Rd2 {[%emt 0:00:53]} Rhh8 {[%emt 0:00:19]} 24. a3 {[%emt 0:01:52]} Rhe8 {[%emt 0:00:36]} 25. Bc3 {[%emt 0:02:14]} Bf8 {[%emt 0:01:35]} 26. a4 {[%emt 0:01:14]} Na6 {[%emt 0:00:29]} 27. a5 {[%emt 0:01:21]} Qc7 {[%emt 0:00:53]} 28. Rb2 {[%emt 0:02:01]} f5 {[%emt 0:08:22]} 29. Ng5 {[%emt 0:00:30]} f4 {[%emt 0:00:02]} 30. gxf4 {[%emt 0:00:16]} Bd6 {[%emt 0:00:02]} 31. Bd2 {[%emt 0:00:42]} c5 {[%emt 0:00:21]} 32. dxc5 {[%emt 0:00:38]} Bxc5 {[%emt 0:00:02]} 33. Qe4 {[%emt 0:00:30]} Bd4 {[%emt 0:00:25]} 34. Raa2 {[%emt 0:00:24]} Nc5 {[%emt 0:00:47]} 35. Qg6 {[%emt 0:00:33]} Bf5 {[%emt 0:00:02]} 36. Qxh5 {[%emt 0:00:10]} Nd3 {[%emt 0:00:08]} 37. Rc2 {[%emt 0:00:45]} Nxf2 {[%emt 0:03:10]} 38. Kh2 {[%emt 0:00:45]} Rh8 {[%emt 0:00:36]} 39. Qf7 {[%emt 0:00:19]} Rd7 {[%emt 0:01:04]} 40. Nxe6 {[%emt 0:00:17]} Rxh4+ {[%emt 0:00:33]} 0-1

[Event "Festival Groningen-A 2024"]
[Site "Groningen"]
[Date "2024.12.30"]
[Round "9.19"]
[White "Noordenbos, Daan"]
[Black "Dolzhykova, Kateryna"]
[Result "0-1"]
[ECO "B22"]
[WhiteElo "2130"]
[BlackElo "2322"]
[Annotator "RC"]
[PlyCount "46"]
[EventDate "2024.12.21"]
[EventType "swiss"]
[EventCountry "NED"]
[SourceTitle "playchess.com"]
[Source "ChessBase"]
[SourceQuality "1"]
[TimeControl "40/5400+30:1800+30"]

1. e4 {[%emt 0:00:04]} c5 {[%emt 0:00:03]} 2. Nf3 {[%emt 0:00:16]} Nc6 {[%emt 0:00:05]} 3. Bc4 {[%emt 0:01:10]} g6 {[%emt 0:01:55]} 4. O-O {[%emt 0:00:58]} Bg7 {[%emt 0:00:08]} 5. c3 {[%emt 0:20:25]} d6 {[%emt 0:00:53]} 6. d4 {[%emt 0:12:39]} cxd4 {[%emt 0:00:20]} 7. cxd4 {[%emt 0:02:17]} Nf6 {[%emt 0:00:29]} 8. Nc3 {[%emt 0:03:34]} O-O {[%emt 0:01:50]} 9. Bb3 {[%emt 0:02:55]} Bg4 {[%emt 0:01:52]} 10. h3 {[%emt 0:04:00]} Bxf3 {[%emt 0:00:27]} 11. gxf3 {[%emt 0:00:02]} Nh5 {[%emt 0:05:26]} 12. Ne2 {[%emt 0:02:23]} e5 {[%emt 0:00:56]} 13. dxe5 {[%emt 0:13:09]} Qh4 {[%emt 0:03:25]} 14. e6 {[%emt 0:00:08]} Qxh3 {[%emt 0:02:17]} 15. exf7+ {[%emt 0:00:02]} Kh8 {[%emt 0:00:00]} 16. Nf4 {[%emt 0:00:36]} Nxf4 17. Bxf4 {[%emt 0:00:02]} Nd4 {[%emt 0:02:24]} 18. Bg3 {[%emt 0:00:37]} h5 {[%emt 0:00:05]} 19. e5 {[%emt 0:07:35]} dxe5 {[%emt 0:02:19]} 20. Qd3 {[%emt 0:01:15]} h4 {[%emt 0:00:49]} 21. Bd5 {[%emt 0:00:30]} hxg3 {[%emt 0:00:57]} 22. fxg3 {[%emt 0:00:04]} Qxg3+ {[%emt 0:00:17]} 23. Kh1 {[%emt 0:00:11]} Bf6 {[%emt 0:00:35]} 0-1

[Event "Festival Groningen-A 2024"]
[Site "Groningen"]
[Date "2024.12.30"]
[Round "9.20"]
[White "Grooten, Herman"]
[Black "Bakija, Alan"]
[Result "0-1"]
[ECO "E61"]
[WhiteElo "2183"]
[BlackElo "2233"]
[Annotator "RC"]
[PlyCount "158"]
[EventDate "2024.12.21"]
[EventType "swiss"]
[EventCountry "NED"]
[SourceTitle "playchess.com"]
[Source "ChessBase"]
[SourceQuality "1"]
[TimeControl "40/5400+30:1800+30"]

1. d4 {[%emt 0:00:05]} d6 {[%emt 0:00:11]} 2. Nf3 {[%emt 0:00:09]} Nf6 {[%emt 0:00:09]} 3. c4 {[%emt 0:00:05]} g6 {[%emt 0:00:05]} 4. Nc3 {[%emt 0:00:05]} Bf5 {[%emt 0:00:05]} 5. Nh4 {[%emt 0:01:14]} Bd7 {[%emt 0:00:54]} 6. e4 {[%emt 0:00:13]} e5 {[%emt 0:00:11]} 7. Nf3 {[%emt 0:00:45]} Bg7 {[%emt 0:00:29]} 8. d5 {[%emt 0:00:44]} O-O {[%emt 0:00:28]} 9. Be2 {[%emt 0:00:10]} a5 {[%emt 0:01:18]} 10. Be3 {[%emt 0:00:15]} Ng4 {[%emt 0:03:01]} 11. Bg5 {[%emt 0:00:08]} f6 {[%emt 0:00:09]} 12. Bh4 {[%emt 0:00:13]} Na6 {[%emt 0:01:45]} 13. Nd2 {[%emt 0:00:50]} Nh6 {[%emt 0:00:10]} 14. f3 {[%emt 0:01:23]} Qe8 {[%emt 0:06:16]} 15. Qc2 {[%emt 0:02:16]} a4 {[%emt 0:03:06]} 16. Nb5 {[%emt 0:03:45]} Nf7 {[%emt 0:12:23]} 17. Qxa4 {[%emt 0:09:22]} f5 {[%emt 0:00:55]} 18. Qc2 {[%emt 0:02:34]} f4 {[%emt 0:02:30]} 19. Bf2 {[%emt 0:03:40]} Kh8 {[%emt 0:02:51]} 20. a3 {[%emt 0:00:28]} Rc8 {[%emt 0:02:22]} 21. Nc3 {[%emt 0:07:53]} Bf6 {[%emt 0:03:38]} 22. b4 {[%emt 0:01:40]} g5 {[%emt 0:05:13]} 23. c5 {[%emt 0:00:52]} Nb8 {[%emt 0:00:06]} 24. Nc4 {[%emt 0:00:43]} h5 {[%emt 0:01:48]} 25. h3 {[%emt 0:00:51]} Kg7 {[%emt 0:01:39]} 26. Qd3 {[%emt 0:08:36]} Rh8 {[%emt 0:02:04]} 27. Kd2 {[%emt 0:02:17]} Be7 {[%emt 0:02:40]} 28. Na5 {[%emt 0:02:41]} dxc5 {[%emt 0:06:59]} 29. bxc5 {[%emt 0:00:57]} Bxc5 {[%emt 0:00:19]} 30. Bxc5 {[%emt 0:00:46]} b6 {[%emt 0:00:04]} 31. Bb4 {[%emt 0:01:20]} bxa5 {[%emt 0:00:07]} 32. Bxa5 {[%emt 0:00:07]} c6 {[%emt 0:01:20]} 33. Rab1 {[%emt 0:05:48]} Rh6 {[%emt 0:07:40]} 34. Rb7 {[%emt 0:03:43]} cxd5 {[%emt 0:02:38]} 35. Nxd5 {[%emt 0:04:49]} Nd6 {[%emt 0:09:21]} 36. Rc7 {[%emt 0:01:19]} Rxc7 {[%emt 0:03:55]} 37. Nxc7 {[%emt 0:01:24]} Qc8 {[%emt 0:00:54]} 38. Nd5 {[%emt 0:03:22]} Bb5 {[%emt 0:04:50]} 39. Qc3 {[%emt 0:00:50]} Nc6 {[%emt 0:01:17]} 40. Bb6 {[%emt 0:08:43]} Qa6 {[%emt 0:03:24]} 41. Bxb5 {[%emt 0:32:59]} Nxb5 {[%emt 0:34:52]} 42. Qd3 {[%emt 0:02:57]} Qa4 {[%emt 0:02:39]} 43. Bc5 {[%emt 0:06:27]} Ncd4 {[%emt 0:00:00]} 44. Rb1 {[%emt 0:00:00]} Rc6 {[%emt 0:00:00]} 45. Rb4 {[%emt 0:00:00]} Qa5 {[%emt 0:00:00]} 46. Bxd4 {[%emt 0:00:00]} Nxd4 {[%emt 0:00:00]} 47. Kd1 {[%emt 0:00:00]} Qc5 {[%emt 0:00:00]} 48. Rb1 {[%emt 0:00:00]} Nc2 {[%emt 0:00:00]} 49. Ke2 {[%emt 0:00:13]} Nxa3 {[%emt 0:05:05]} 50. Rb7+ {[%emt 0:02:41]} Kh6 {[%emt 0:00:54]} 51. Nb4 {[%emt 0:03:26]} Rd6 {[%emt 0:01:26]} 52. Qxa3 {[%emt 0:00:35]} Qc4+ {[%emt 0:01:03]} 53. Ke1 {[%emt 0:00:10]} Qd4 {[%emt 0:01:11]} 54. Nd5 {[%emt 0:01:18]} Qg1+ {[%emt 0:00:06]} 55. Kd2 {[%emt 0:01:25]} Qxg2+ {[%emt 0:00:52]} 56. Kd1 {[%emt 0:00:42]} Qf1+ {[%emt 0:00:15]} 57. Kc2 {[%emt 0:03:54]} Rc6+ {[%emt 0:00:05]} 58. Nc3 {[%emt 0:03:25]} Qe2+ {[%emt 0:00:04]} 59. Kb3 {[%emt 0:00:42]} Rxc3+ {[%emt 0:00:11]} 60. Kxc3 {[%emt 0:00:06]} Qxf3+ {[%emt 0:00:03]} 61. Kb2 {[%emt 0:00:13]} Qxa3+ {[%emt 0:00:04]} 62. Kxa3 {[%emt 0:00:04]} g4 {[%emt 0:00:59]} 63. hxg4 {[%emt 0:01:02]} hxg4 {[%emt 0:00:06]} 64. Kb3 {[%emt 0:00:13]} g3 {[%emt 0:00:22]} 65. Kc3 {[%emt 0:00:35]} g2 {[%emt 0:00:45]} 66. Rb6+ {[%emt 0:00:28]} Kg7 {[%emt 0:02:06]} 67. Rb1 {[%emt 0:00:06]} f3 {[%emt 0:00:03]} 68. Rg1 {[%emt 0:00:24]} Kf6 {[%emt 0:00:21]} 69. Kd2 {[%emt 0:00:18]} f2 {[%emt 0:00:06]} 70. Rxg2 {[%emt 0:00:05]} f1=Q {[%emt 0:00:05]} 71. Re2 {[%emt 0:00:09]} Ke6 {[%emt 0:00:38]} 72. Ke3 {[%emt 0:00:07]} Qf4+ {[%emt 0:00:38]} 73. Kd3 {[%emt 0:00:05]} Kd6 {[%emt 0:00:00]} 74. Re3 {[%emt 0:00:46]} Kc5 {[%emt 0:00:05]} 75. Re1 {[%emt 0:00:51]} Qf3+ {[%emt 0:00:12]} 76. Kd2 {[%emt 0:00:06]} Kd4 {[%emt 0:00:28]} 77. Re2 {[%emt 0:00:20]} Qf1 {[%emt 0:01:35]} 78. Re1 {[%emt 0:00:20]} Qd3+ {[%emt 0:00:06]} 79. Kc1 {[%emt 0:00:03]} Kc3 {[%emt 0:00:45]} 0-1

[Event "Festival Groningen-A 2024"]
[Site "Groningen"]
[Date "2024.12.30"]
[Round "9.21"]
[White "Sharma, Dinesh K."]
[Black "Grooten, Tommy"]
[Result "1-0"]
[ECO "B81"]
[WhiteElo "2200"]
[BlackElo "2153"]
[Annotator "RC"]
[PlyCount "123"]
[EventDate "2024.12.21"]
[EventType "swiss"]
[EventCountry "NED"]
[SourceTitle "playchess.com"]
[Source "ChessBase"]
[SourceQuality "1"]
[TimeControl "40/5400+30:1800+30"]

1. e4 {[%emt 0:00:03]} c5 {[%emt 0:00:02]} 2. Nf3 {[%emt 0:00:10]} e6 {[%emt 0:00:07]} 3. d4 {[%emt 0:00:06]} cxd4 {[%emt 0:00:02]} 4. Nxd4 {[%emt 0:00:09]} Nf6 {[%emt 0:00:01]} 5. Nc3 {[%emt 0:00:12]} d6 {[%emt 0:00:02]} 6. g4 {[%emt 0:00:10]} h6 {[%emt 0:00:03]} 7. h3 {[%emt 0:00:08]} Nc6 {[%emt 0:01:49]} 8. Bg2 {[%emt 0:00:03]} Be7 {[%emt 0:03:27]} 9. Be3 {[%emt 0:02:06]} a6 {[%emt 0:08:37]} 10. Qe2 {[%emt 0:06:41]} Nxd4 {[%emt 0:03:54]} 11. Bxd4 {[%emt 0:00:08]} e5 {[%emt 0:00:03]} 12. Be3 {[%emt 0:00:04]} Be6 {[%emt 0:00:11]} 13. f4 {[%emt 0:02:16]} exf4 {[%emt 0:00:53]} 14. Bxf4 {[%emt 0:00:07]} Rc8 {[%emt 0:01:54]} 15. Qd2 {[%emt 0:07:50]} Nd7 {[%emt 0:10:40]} 16. O-O-O {[%emt 0:05:45]} Ne5 {[%emt 0:01:48]} 17. Bxe5 {[%emt 0:15:03]} dxe5 {[%emt 0:02:33]} 18. Qxd8+ {[%emt 0:00:08]} Bxd8 {[%emt 0:10:36]} 19. Nd5 {[%emt 0:00:26]} O-O {[%emt 0:00:42]} 20. Bf3 {[%emt 0:01:03]} Bh4 {[%emt 0:04:07]} 21. c3 {[%emt 0:01:29]} Rc5 {[%emt 0:02:25]} 22. Kb1 {[%emt 0:00:47]} b5 {[%emt 0:07:23]} 23. Nb4 {[%emt 0:00:21]} Rc7 {[%emt 0:03:06]} 24. Nxa6 {[%emt 0:02:53]} Bxa2+ {[%emt 0:00:14]} 25. Kxa2 {[%emt 0:00:18]} Ra8 {[%emt 0:00:33]} 26. Kb3 {[%emt 0:02:24]} Rxa6 {[%emt 0:00:04]} 27. Rd5 {[%emt 0:00:52]} b4 {[%emt 0:10:34]} 28. cxb4 {[%emt 0:00:40]} Rb6 {[%emt 0:02:09]} 29. b5 {[%emt 0:00:40]} Rcb7 {[%emt 0:03:10]} 30. Be2 {[%emt 0:00:35]} Rf6 {[%emt 0:01:40]} 31. Rf1 {[%emt 0:02:01]} Rxf1 {[%emt 0:01:21]} 32. Bxf1 {[%emt 0:00:02]} f6 {[%emt 0:02:34]} 33. Kb4 {[%emt 0:05:18]} Bf2 {[%emt 0:02:14]} 34. Rd6 {[%emt 0:05:19]} Kf8 {[%emt 0:02:24]} 35. Bc4 {[%emt 0:04:52]} Ke7 {[%emt 0:00:45]} 36. Ra6 {[%emt 0:03:01]} Kd7 {[%emt 0:05:45]} 37. Be6+ {[%emt 0:01:02]} Ke7 {[%emt 0:02:10]} 38. Bd5 {[%emt 0:00:55]} Ra7 {[%emt 0:01:05]} 39. Rc6 {[%emt 0:07:00]} Be1+ {[%emt 0:05:11]} 40. Kb3 {[%emt 0:00:12]} Bf2 {[%emt 0:03:40]} 41. Rc8 {[%emt 0:34:02]} Kd7 {[%emt 0:02:03]} 42. Rc2 {[%emt 0:00:00]} Bd4 {[%emt 0:02:10]} 43. Kb4 {[%emt 0:00:00]} Be3 {[%emt 0:01:08]} 44. h4 {[%emt 0:00:00]} Rc7 {[%emt 0:03:17]} 45. Bc6+ {[%emt 0:00:00]} Kd6 {[%emt 0:00:21]} 46. Re2 {[%emt 0:00:00]} Bd4 {[%emt 0:00:16]} 47. Rg2 {[%emt 0:00:00]} Be3 {[%emt 0:09:17]} 48. Rg3 {[%emt 0:00:00]} Bf2 {[%emt 0:00:43]} 49. Rd3+ {[%emt 0:00:00]} Bd4 {[%emt 0:00:03]} 50. g5 {[%emt 0:00:00]} hxg5 {[%emt 0:00:13]} 51. hxg5 {[%emt 0:00:00]} fxg5 {[%emt 0:00:51]} 52. Rg3 {[%emt 0:29:09]} Rf7 {[%emt 0:02:11]} 53. Rxg5 {[%emt 0:00:00]} Kc7 {[%emt 0:02:45]} 54. Bd5 {[%emt 0:00:00]} Re7 {[%emt 0:00:15]} 55. Rg6 {[%emt 0:00:00]} Bxb2 {[%emt 0:01:41]} 56. b6+ {[%emt 0:00:00]} Kb8 {[%emt 0:00:22]} 57. Kb5 {[%emt 0:00:00]} Bd4 {[%emt 0:00:26]} 58. Rg2 {[%emt 0:00:00]} Kc8 {[%emt 0:03:35]} 59. Rc2+ {[%emt 0:00:00]} Kd7 {[%emt 0:01:42]} 60. b7 {[%emt 0:00:00]} Ba7 {[%emt 0:00:53]} 61. Rc8 {[%emt 0:00:00]} g5 {[%emt 0:01:23]} 62. Ka6 {[%emt 0:00:00]} 1-0

[Event "Festival Groningen-A 2024"]
[Site "Groningen"]
[Date "2024.12.30"]
[Round "9.22"]
[White "Ten Dam, Bram"]
[Black "Ivanov, Dmytry"]
[Result "1/2-1/2"]
[ECO "B84"]
[WhiteElo "2002"]
[BlackElo "2072"]
[Annotator "RC"]
[PlyCount "41"]
[EventDate "2024.12.21"]
[EventType "swiss"]
[EventCountry "NED"]
[SourceTitle "playchess.com"]
[Source "ChessBase"]
[SourceQuality "1"]
[TimeControl "40/5400+30:1800+30"]

1. e4 {[%emt 0:00:02]} c5 {[%emt 0:00:05]} 2. Nf3 {[%emt 0:00:07]} e6 {[%emt 0:00:06]} 3. d4 {[%emt 0:00:09]} cxd4 {[%emt 0:00:06]} 4. Nxd4 {[%emt 0:00:05]} Nf6 {[%emt 0:00:17]} 5. Nc3 {[%emt 0:00:15]} d6 {[%emt 0:00:21]} 6. Be3 {[%emt 0:03:56]} a6 {[%emt 0:01:18]} 7. Be2 {[%emt 0:02:45]} Nbd7 {[%emt 0:02:41]} 8. f4 {[%emt 0:01:17]} Qc7 {[%emt 0:06:55]} 9. O-O {[%emt 0:02:28]} b5 {[%emt 0:00:34]} 10. a3 {[%emt 0:07:32]} Bb7 {[%emt 0:00:15]} 11. Bf3 {[%emt 0:00:22]} Nc5 {[%emt 0:11:59]} 12. e5 {[%emt 0:02:33]} dxe5 {[%emt 0:02:39]} 13. fxe5 {[%emt 0:00:09]} Qxe5 {[%emt 0:14:24]} 14. Bf4 {[%emt 0:02:46]} Bxf3 {[%emt 0:00:29]} 15. Rxf3 {[%emt 0:00:31]} Qh5 {[%emt 0:00:16]} 16. Qf1 {[%emt 0:14:29]} Ncd7 {[%emt 0:04:08]} 17. b4 {[%emt 0:05:33]} h6 {[%emt 0:15:27]} 18. Re1 {[%emt 0:08:11]} Rc8 {[%emt 0:02:19]} 19. Rh3 {[%emt 0:04:38]} Qg4 {[%emt 0:04:04]} 20. Rg3 {[%emt 0:01:42]} Qh5 {[%emt 0:00:06]} 21. Rh3 {[%emt 0:00:58]} 1/2-1/2

[Event "Festival Groningen-A 2024"]
[Site "Groningen"]
[Date "2024.12.30"]
[Round "9.23"]
[White "Boeren, Jurriaan"]
[Black "Ratsma, Midas"]
[Result "1-0"]
[ECO "C70"]
[WhiteElo "2147"]
[BlackElo "2326"]
[Annotator "RC"]
[PlyCount "77"]
[EventDate "2024.12.21"]
[EventType "swiss"]
[EventCountry "NED"]
[SourceTitle "playchess.com"]
[Source "ChessBase"]
[SourceQuality "1"]
[TimeControl "40/5400+30:1800+30"]

1. e4 {[%emt 0:00:04]} e5 {[%emt 0:00:18]} 2. Nf3 {[%emt 0:00:03]} Nc6 {[%emt 0:00:17]} 3. Bb5 {[%emt 0:00:04]} a6 {[%emt 0:00:25]} 4. Ba4 {[%emt 0:00:03]} b5 {[%emt 0:00:18]} 5. Bb3 {[%emt 0:00:05]} Na5 {[%emt 0:00:16]} 6. O-O {[%emt 0:09:18]} d6 {[%emt 0:00:24]} 7. d4 {[%emt 0:05:50]} exd4 {[%emt 0:00:24]} 8. Nxd4 {[%emt 0:03:10]} Bb7 {[%emt 0:00:50]} 9. Qe1 {[%emt 0:08:55]} c5 {[%emt 0:01:52]} 10. Bd2 {[%emt 0:03:14]} Nxb3 {[%emt 0:00:19]} 11. Nxb3 {[%emt 0:00:08]} Be7 {[%emt 0:00:27]} 12. Na5 {[%emt 0:02:41]} Bc8 {[%emt 0:00:15]} 13. Nc6 {[%emt 0:02:32]} Qb6 {[%emt 0:00:14]} 14. Nxe7 {[%emt 0:00:29]} Nxe7 {[%emt 0:00:06]} 15. Nc3 {[%emt 0:02:27]} O-O {[%emt 0:00:58]} 16. Bf4 {[%emt 0:05:16]} Be6 {[%emt 0:06:26]} 17. Qd2 {[%emt 0:02:07]} Rad8 {[%emt 0:01:28]} 18. Nd5 {[%emt 0:05:18]} Qb7 {[%emt 0:13:36]} 19. Nxe7+ {[%emt 0:06:20]} Qxe7 {[%emt 0:01:32]} 20. Rfe1 {[%emt 0:01:43]} Rd7 {[%emt 0:03:48]} 21. Rad1 {[%emt 0:02:47]} Rfd8 {[%emt 0:00:38]} 22. b3 {[%emt 0:02:02]} h5 {[%emt 0:20:34]} 23. Re3 {[%emt 0:09:39]} h4 {[%emt 0:17:52]} 24. h3 {[%emt 0:07:10]} Qf6 {[%emt 0:04:17]} 25. Rd3 {[%emt 0:04:59]} Qg6 {[%emt 0:00:15]} 26. Bg5 {[%emt 0:01:42]} c4 {[%emt 0:03:43]} 27. Rf3 {[%emt 0:04:20]} d5 {[%emt 0:05:38]} 28. e5 {[%emt 0:02:50]} d4 {[%emt 0:02:26]} 29. Bxh4 {[%emt 0:04:24]} Bf5 {[%emt 0:11:38]} 30. Rg3 {[%emt 0:01:11]} Qe6 {[%emt 0:00:49]} 31. Bxd8 {[%emt 0:00:29]} Bxc2 {[%emt 0:02:10]} 32. Qxc2 {[%emt 0:02:01]} Rxd8 {[%emt 0:00:04]} 33. bxc4 {[%emt 0:00:37]} bxc4 {[%emt 0:00:05]} 34. Rg4 {[%emt 0:00:46]} d3 {[%emt 0:02:36]} 35. Qxc4 {[%emt 0:00:36]} Qb6 {[%emt 0:00:31]} 36. Rg3 {[%emt 0:01:19]} Rd4 {[%emt 0:00:27]} 37. Qc8+ {[%emt 0:00:27]} Rd8 {[%emt 0:00:05]} 38. Qg4 {[%emt 0:00:14]} g6 {[%emt 0:00:04]} 39. Rgxd3 {[%emt 0:00:42]} 1-0